Cogmind - Beta 10.2 @@@ ROGUE MODE // 2022.01.20 @ 12:30:04 Player: Ecllection Result: Destroyed by D-53 Grenadier with Mini Grenade Launcher Performance ------------- Evolutions (0) 0 Regions Visited (4) 800 Robots Destroyed (2) 10 Value Destroyed (17) 17 Prototype IDs (0) 0 Alien Tech Used (0) 0 Bonus (0) 0 TOTAL SCORE: 827 Bonus ------- None Cogmind --------- Core Integrity 0/250 Matter 239/300 Energy 99/100 System Corruption 0% Temperature Cool (0) Movement Core (50) Location -9/Mines Parts ------- > --- POWER (1) -------- (None) > --- PROPULSION (2) --- (None) > --- UTILITY (2) ------ (None) > --- WEAPON (2) ------- Medium Laser > --- INVENTORY (4) ---- Small Storage Unit Experimental Sensor Array Light Cannon Peak State ------------ > --- POWER ------------ Ion Engine > --- PROPULSION ------- Light Treads Light Treads > --- UTILITY ---------- Humpback > --- WEAPON ----------- EM Pulse Gun Makeshift Shrapnel Gun > --- INVENTORY -------- Light Ion Engine Small Storage Unit Experimental Sensor Array Medium Laser Assault Rifle Light Cannon [Rating: 11] Favorites ----------- Power Ion Engine Engine Ion Engine Propulsion Light Treads Treads Light Treads Wheel Wheel Utility Small Storage Unit Storage Small Storage Unit Weapon EM Pulse Gun Energy Gun EM Pulse Gun Ballistic Gun Makeshift Shrapnel Gun Build | -11 -10 -10 -10 -9 ------- Run | Scr Mat Min Exi Min Slots Evolved . | . . . . . Power . | . . . . . Propulsion . | . . . . . Utility . | . . . . . Weapon . | . . . . . Parts Attached 12 | 6 . 1 1 4 Power 2 | 2 . . . . Engine 2 | 2 . . . . Core . | . . . . . Reactor . | . . . . . Propulsion 3 | 2 . . . 1 Treads 2 | 2 . . . . Leg . | . . . . . Wheel 1 | . . . . 1 Hover . | . . . . . Flight . | . . . . . Utility 2 | 1 . . 1 . Device . | . . . . . Storage 2 | 1 . . 1 . Processor . | . . . . . Hackware . | . . . . . Protection . | . . . . . Artifact . | . . . . . Weapon 5 | 1 . 1 . 3 Energy Gun 3 | 1 . 1 . 1 Energy Cannon . | . . . . . Ballistic Gun 2 | . . . . 2 Ballistic Cannon . | . . . . . Launcher . | . . . . . Special Weapon . | . . . . . Impact Weapon . | . . . . . Slashing Weapon . | . . . . . Piercing Weapon . | . . . . . Special Melee Weapon . | . . . . . Unidentified Prototypes . | . . . . . Parts Lost 4 | . . . . 4 Power 1 | . . . . 1 Propulsion 2 | . . . . 2 Utility . | . . . . . Weapon 1 | . . . . 1 Highest Loss Streak 3 | . . . . 3 Average Slot Usage (%) 80 | . 71 80 85 67 Engine 13 | . 14 14 14 11 Treads 26 | . 28 28 28 21 Storage 13 | . 14 14 14 11 Energy Gun 25 | . 14 23 28 21 Naked Turns 52 | . . . . 52 Heaviest Build 89 | 11 11 13 89 89 Greatest Support 40 | 40 40 40 40 40 Greatest Overweight (x) 2 | . . . 2 2 Average Overweight (x) . | . . . . 1 Largest Inventory Capacity 24 | 6 6 6 24 24 Average Capacity 13 | 4 6 6 13 19 Most Carried 6 | 4 2 5 6 6 Average Carried 4 | 1 2 3 5 5 Final Capacity 24 | 6 6 6 24 4 Final Carried 6 | 2 2 5 6 3 Class Distribution -------------------- 58% | Mutant 41% | Hauler-Mutant Dominant Class ---------------- Mutant | -10/Materials Mutant | -10/Mines Mutant | -10/Exiles Hauler-Mutant | -9/Mines Resources | -11 -10 -10 -10 -9 ----------- Run | Scr Mat Min Exi Min Matter Collected 277 | 221 17 22 . 17 Remotely . | . . . . . Salvage Created 75 | . 17 . . 58 Parts 1 | . . . . 1 Haulers Intercepted . | . . . . . Recyclers Shooed . | . . . . . Parts Field Recycled . | . . . . . Retrieved Matter . | . . . . . Parts Self-Destructed . | . . . . . Prevented . | . . . . . Kills | -11 -10 -10 -10 -9 ------- Run | Scr Mat Min Exi Min Combat Hostiles Destroyed 3 | . . . . 3 Guns 3 | . . . . 3 Classes Destroyed 3 | . 1 . . 2 Worker 1 | . . . . 1 Operator 1 | . 1 . . . Assembled 3 | . . . . 3 Best Kill Streak 3 | . 1 . . 3 Combat Bots Only 3 | . . . . 3 Max Kills in Single Turn 1 | . 1 . . 1 Gunslinging . | . . . . . Exploded . | . . . . . Melee . | . . . . . Uniques/NPCs Destroyed . | . . . . . Combat | -11 -10 -10 -10 -9 -------- Run | Scr Mat Min Exi Min Damage Taken 1152 | . 105 . . 1047 Core 272 | . 10 . . 262 Absorbed by Shields . | . . . . . Core Remaining (%) 100 | 100 . . . . Volleys Fired 9 | . 1 . . 8 Largest 2 | . 1 . . 2 Hottest 64 | . 40 . . 64 Shots Fired 15 | . 1 . . 14 Gun 15 | . 1 . . 14 Cannon . | . . . . . Launcher . | . . . . . Special . | . . . . . Kinetic 8 | . . . . 8 Thermal 1 | . . . . 1 Explosive . | . . . . . Electromagnetic 6 | . 1 . . 5 Robot Hit Streak 3 | . 1 . . 3 Robot Miss Streak 2 | . . . . 2 Penetration Max . | . . . . . Secondary Targets 1 | . . . . 1 Max Gunslinging Chain 1 | . . . . 1 Shots Hit Robots 13 | . 1 . . 12 Core Hits 11 | . 1 . . 10 Critical Hits . | . . . . . Critical Kills . | . . . . . Critical Parts Destroyed . | . . . . . Melee Attacks . | . . . . . Impact . | . . . . . Slashing . | . . . . . Piercing . | . . . . . Sneak Attacks . | . . . . . Combat Hostiles . | . . . . . Follow-up Attacks . | . . . . . Damage Inflicted 221 | . 15 . . 206 Guns 221 | . 15 . . 206 Cannons . | . . . . . Explosions . | . . . . . Melee . | . . . . . Ramming . | . . . . . Kinetic 152 | . . . . 152 Thermal 13 | . . . . 13 Explosive . | . . . . . Electromagnetic 56 | . 15 . . 41 Impact . | . . . . . Slashing . | . . . . . Piercing . | . . . . . Highest Corruption . | . . . . . Average Corruption . | . . . . . Corruption Purged . | . . . . . Overload Shots . | . . . . . Overflow Damage . | . . . . . Projectiles . | . . . . . Explosions . | . . . . . Melee . | . . . . . Knockbacks . | . . . . . Impact . | . . . . . Kinetic . | . . . . . Secondary . | . . . . . Self-Inflicted Damage . | . . . . . Shots . | . . . . . Rammed . | . . . . . Targets Rammed . | . . . . . Kicked . | . . . . . Crushed . | . . . . . Highest Temperature 311 | . . . . 311 Average Temperature 134 | . . . . 134 Received Heat Transfer 418 | . 18 . . 400 Siege Activations . | . . . . . Robots Corrupted . | . . . . . Combat Hostiles . | . . . . . Parts Fried . | . . . . . Impact Corruptions . | . . . . . Robots Melted . | . . . . . Combat Hostiles . | . . . . . Parts Melted . | . . . . . Heat Transferred 37 | . . . . 37 Parts Sabotaged . | . . . . . Parts Stolen . | . . . . . Parts Stripped . | . . . . . Power Chain Reactions . | . . . . . Missiles Intercepted . | . . . . . Alert | -11 -10 -10 -10 -9 ------- Run | Scr Mat Min Exi Min Peak Influence 55 | . 35 13 . 55 Initial 13 | . . 13 . . Average 9 | . 26 13 . 3 Maximum Alert Level . | . . . . . Low Security (%) 100 | 100 100 100 . 100 Level 1 . | . . . . . Level 2 . | . . . . . Level 3 . | . . . . . Level 4 . | . . . . . Level 5 . | . . . . . High Security . | . . . . . Max Security . | . . . . . Squads Dispatched 1 | . 1 . . . Investigation . | . . . . . Extermination . | . . . . . Reinforcement 1 | . 1 . . . Assault . | . . . . . Garrison . | . . . . . Intercept . | . . . . . Construction Impeded . | . . . . . Haulers Reinforced . | . . . . . Stealth | -11 -10 -10 -10 -9 --------- Run | Scr Mat Min Exi Min Distress Signals . | . . . . . Communications Jammed . | . . . . . Distress Signals . | . . . . . Times Spotted 30 | . 6 . . 24 Peak Tracking Total 18 | . 4 . . 18 Tactical Retreats 2 | . . . . 2 Traps | -11 -10 -10 -10 -9 ------- Run | Scr Mat Min Exi Min Traps Triggered . | . . . . . Indirectly . | . . . . . Trap Hack Attempts . | . . . . . Triggered . | . . . . . Disarmed . | . . . . . Reprogrammed . | . . . . . Reused . | . . . . . Traps Extracted . | . . . . . Installed . | . . . . . Triggered . | . . . . . Machines | -11 -10 -10 -10 -9 ---------- Run | Scr Mat Min Exi Min Machines Disabled . | . . . . . Max in Single Turn . | . . . . . Machines Sabotaged . | . . . . . Garrisons Compromised . | . . . . . Overloaded Fab Kills . | . . . . . Fab Network Shutdowns . | . . . . . Hacking | -11 -10 -10 -10 -9 --------- Run | Scr Mat Min Exi Min Machines Accessed 4 | . . . 4 . Terminals . | . . . . . Fabricators . | . . . . . Repair Stations . | . . . . . Recycling Units . | . . . . . Scanalyzers . | . . . . . Garrison Access . | . . . . . Total Hacks 4 | . . . 4 . Successful 4 | . . . 4 . Failed . | . . . . . Catastrophic . | . . . . . Database Lockouts . | . . . . . Manual 5 | . . . 5 . Terminals . | . . . . . Fabricators . | . . . . . Repair Stations . | . . . . . Recycling Units . | . . . . . Scanalyzers . | . . . . . Garrison Access . | . . . . . Terminal Hacks 4 | . . . 4 . Record 4 | . . . 4 . Fabricator Hacks . | . . . . . Repair Station Hacks . | . . . . . Recycling Unit Hacks . | . . . . . Scanalyzer . | . . . . . Garrison Access Hacks . | . . . . . Unauthorized Hacks . | . . . . . Terminals . | . . . . . Fabricators . | . . . . . Repair Stations . | . . . . . Recycling Units . | . . . . . Scanalyzers . | . . . . . Garrison Access . | . . . . . Data Cores Recovered . | . . . . . Used . | . . . . . Hacking Detections . | . . . . . Full Trace Events . | . . . . . Feedback Events . | . . . . . Feedback Blocked . | . . . . . Robot Schematics Acquired . | . . . . . Robots Built . | . . . . . Matter . | . . . . . Time . | . . . . . Total Robot Build Rating . | . . . . . Part Schematics Acquired . | . . . . . Parts Built . | . . . . . Matter . | . . . . . Time . | . . . . . Total Part Build Rating . | . . . . . Parts Repaired . | . . . . . Time . | . . . . . Parts Recycled . | . . . . . Recycled Matter . | . . . . . Retrieved Matter . | . . . . . Retrieved Components . | . . . . . Parts Scanalyzed . | . . . . . Part Schematics Acquired . | . . . . . Parts Damaged . | . . . . . Bothacking | -11 -10 -10 -10 -9 ------------ Run | Scr Mat Min Exi Min Used RIF Installer . | . . . . . Robots Hacked . | . . . . . Non-combat . | . . . . . Combat . | . . . . . Robot Hacks Applied . | . . . . . Relay Couplers Released . | . . . . . Robots Rewired . | . . . . . Allies Hacked . | . . . . . Hacks Repelled . | . . . . . Allies | -11 -10 -10 -10 -9 -------- Run | Scr Mat Min Exi Min Total Allies . | . . . . . Largest Group . | . . . . . Highest-Rated Group . | . . . . . Highest-Rated Ally . | . . . . . Total Orders . | . . . . . Ally Attacks . | . . . . . Total Damage . | . . . . . Kills . | . . . . . Allies Corrupted . | . . . . . Allies Melted . | . . . . . Intel | -11 -10 -10 -10 -9 ------- Run | Scr Mat Min Exi Min Robot Analysis Total . | . . . . . Derelict Logs Recovered 4 | . . 2 . 2 Drone Launches . | . . . . . Drone Recoveries . | . . . . . Exploration | -11 -10 -10 -10 -9 ------------- Run | Scr Mat Min Exi Min Turns Passed 2163 | 71 106 201 1410 375 Spaces Moved 1280 | 41 42 123 804 270 Core 122 | 6 . . . 116 Treads 1141 | 35 42 123 804 137 Legs . | . . . . . Wheels 17 | . . . . 17 Hover . | . . . . . Flight . | . . . . . Fastest Speed 50 | 50 160 160 160 50 Average Speed 161 | 143 160 160 174 128 Slowest Speed 200 | 160 160 160 200 200 Overloaded Moves . | . . . . . Propulsion Burnouts . | . . . . . Robots Hopped . | . . . . . Cave-ins Triggered . | . . . . . Exploration Rate (%) 41 | 4 20 30 93 58 Regions Visited 4 Branch Regions 3 Pre-discovered Areas 2 | . . 1 . 1 Known Exits Taken . | . . . . . Unknown Exits Taken 4 | 1 1 1 1 . Scrap Searched 2 | . . 2 . . Spaces Dug . | . . . . . Terrain Destroyed . | . . . . . Melee . | . . . . . Projectile . | . . . . . AOE . | . . . . . Terrain Rammed . | . . . . . Walls Destroyed . | . . . . . Machines Disabled . | . . . . . Actions | -11 -10 -10 -10 -9 --------- Run | Scr Mat Min Exi Min Total 1361 | 53 80 127 815 286 Wait 38 | . 38 . . . Move 1276 | 40 41 122 803 270 Hop . | . . . . . Pick Up 18 | 7 . 4 6 1 Fast Attach . | . . . . . Attach 10 | 5 . 1 1 3 Detach . | . . . . . Swap 2 | 1 . . . 1 Drop 8 | . . . 5 3 Fire 9 | . 1 . . 8 Melee . | . . . . . Ram . | . . . . . Kick . | . . . . . Crush . | . . . . . Escape Stasis . | . . . . . Rewire . | . . . . . Trap . | . . . . . Miscellaneous . | . . . . . Route ------- -11/Scrapyard -10/Materials -10/Mines -10/Exiles (discovered 2 exits: [*Min x2]) -9/Mines History --------- Turn | Location | Event 6 | -11/Scrapyard | Discovered new exit (range 15) 72 | -11/Scrapyard | Entered Materials 98 | -10/Materials | Discovered new exit (range 12) 178 | -10/Materials | Entered Mines 182 | -10/Mines | Met a Derelict bent on vengeance 183 | -10/Mines | Learned Materials emergency access door positions 210 | -10/Mines | A weapon hastily lodged in a ceiling crevice suddenly fell to the ground 301 | -10/Mines | Found a damaged Exp. Sensor Array with a note attached 304 | -10/Mines | Found Prototype Device 306 | -10/Mines | Build established: Mutant 361 | -10/Mines | Deemed a non-threat by the Exiles lab entrance 363 | -10/Mines | Discovered new exit (range 5) 379 | -10/Mines | Entered Exiles 379 | -10/Exiles | Found Exiles lab abandoned 816 | -10/Exiles | Discovered new exit (range 14) 1335 | -10/Exiles | Discovered new exit (range 14) 1495 | -10/Exiles | Build established: Hauler-Mutant 1789 | -10/Exiles | Entered Mines 1789 | -9/Mines | Learned Materials garrison access intel 2056 | -9/Mines | Assembled infested the area 2082 | -9/Mines | Core integrity fell below 50% 2088 | -9/Mines | Core integrity fell below 20% 2108 | -9/Mines | Learned location of Zion (-6) 2116 | -9/Mines | Lost 3 parts (1p1n1w) 2164 | -9/Mines | Destroyed by D-53 Grenadier with Mini Grenade Launcher Last Messages --------------- as-85666 destroyed. as-02921 destroyed. as-52443 destroyed. as-87293 destroyed. Dropped Mak. Shrapnel Gun. as-30080 destroyed. as-04277 destroyed. U-05 Engineer lays Concrete. R-06 Scavenger collects Assault Rifle. U-05 Engineer lays Concrete. as-52176 destroyed. U-05 Engineer destroyed. R-06 Scavenger collects Wheel. Acquired derelict log, extracted data. World map updated: -6/Zion. [Achievement: Slippery One] K-01 Serf destroyed. Acquired 17 matter. Acquired Wheel. Wheel destroyed. Map ----- +----------------------------------------------------+ | ?????????????????????????????????????????????????? | | ?????????????????????????????????????????????????? | | ?????????????????????????????????????????????????? | | ?????????????????????????????????????????????????? | | ?????????????????????????????????????????????????? | | ?????????????????????????????????????????????????? | | ??????????????????????????######?????????????????? | | ?????????????????????????## ######????????????? | | ?????????????????????????# ##???????????? | | ?????????????????????????# #???????????? | | ?????????????????????????# #???????????? | | ?????????????????????????# ## #???????????? | | ????????????????????????## #### #???####????? | | ???????????????????????## ##?## #??## ##???? | | ???????????????????????# ##??# #### #???? | | ???????????????????????# ##?## ## ##??? | | ???????????????????????## ### ##?? | | ?????????????????? ?????## ## #?? | | ????########???## ????### #### #?? | | ##### ### ????## #??## #?? | | ???# ## ##??###### #?? | | ## ???# ### ##??????## ##?? | | ?# #????????# ### ##??????####??? | | ?# ####????????# ## ##?####??????? | | ?# ##???????????## dd ### ###????? | | ?## #?????????????##@ ##???? | | ??### ##?????????????# ### """ ##??? | | ????## #?????????????# #?# ### """ #??? | | ?????# #????????????? #?# #?## """ #??? | | ????## #?????????????# ### ####### """ #??? | | ????# #?????????????# #???## #??? | | ????# ##????????????####### ######### #??? | | ????## #??????????????????# ##### ##??? | | ?????## #??????????????????# #### ##???? | | ###???## #??????????????????##### #?###????? | | #???## ##???????####??????????# #????????? | | #??## #####??## ##?????????# #????????? | | #?## #?## #?????????# #????????? | | ### #?# ##????????# ##????????? | | ## ### ### ####?????# #?????????? | | # ##?# ##????# ##?????????? | | #??# [ ###### ##??????????? | | #??##### #???????????? | | ### #?????# *% #???????????? | | #####?## #?????# * ###########???????????? | | ???????####?????## != ##?????????????????????? | | ?????????????????# #?????????????????????? | | ?????????????????## % #?????????????????????? | | ??????????????????# #????????????????????? | | ?????????????????# #????????????????????? | +----------------------------------------------------+ Best States ------------- Heat Dissipation 25 Energy Generation 10 Energy Capacity 250 Matter Stores 300 Matter Capacity 300 Sight Range 16 Terrain Scan Density 10 Evasion (%) 50 Recoil Reduction 2 Item Schematics ----------------- None Robot Schematics ------------------ None Fabricated ------------ Nothing Alien Tech Used ----------------- None Achievements -------------- Slippery One Challenges ------------ None Game ------ Seed TiamatIonRail Manual? 0 Play Time 00:16:00 Cumulative 12.2 hours Start 2022.01.20 @ 12:13:56 End 2022.01.20 @ 12:30:04 Sessions 1 Manual Loads 0 Difficulty Rogue Special Mode None Game No. 27 Rogue 27 Adventurer 0 Explorer 0 Win Type - Total 0 Types 0/0/0/0/0/0/0/0/0 Lore% 16 Gallery% 17 Achievement% 14 Wizard Run 0 Options --------- ASCII 0 Keyboard 0 Movement Mouse Keybinds 0 Fullscreen 1 Font 18/SmallcapsGlow Map View 76x50 Tactical HUD 0 Map Filters NONE Filters NONE Steam 1 RUN: 14983914-f51c-4071-8c88-d45e00bab483